[Event "*** Titled Tuesday Blitz"]
[Site "Chess.com"]
[Date "2019.10.01"]
[Round "3"]
[White "RitvarsReimanis"]
[Black "platy3"]
[Result "0-1"]
[WhiteElo "2583"]
[BlackElo "2859"]
[TimeControl "180+2"]
[EndTime "13:36:20 PDT"]
[Termination "platy3 won by resignation"]

1. d4 {[%clk 0:03:01.9]} 1... Nf6 {[%clk 0:02:59.7]} 2. c4 {[%clk 0:03:03.1]}
2... e6 {[%clk 0:03:00.2]} 3. Nf3 {[%clk 0:03:04.5]} 3... d5 {[%clk 0:02:58.3]}
4. Nc3 {[%clk 0:03:04.9]} 4... dxc4 {[%clk 0:02:59.6]} 5. e3 {[%clk 0:03:03.8]}
5... a6 {[%clk 0:02:59.8]} 6. Bxc4 {[%clk 0:03:04.5]} 6... b5 {[%clk 0:03:00.2]}
7. Bb3 {[%clk 0:03:05.8]} 7... Bb7 {[%clk 0:03:00.2]} 8. O-O {[%clk 0:03:06.5]}
8... c5 {[%clk 0:02:59.7]} 9. Qe2 {[%clk 0:03:05.9]} 9... Nbd7 {[%clk
0:02:57.9]} 10. Rd1 {[%clk 0:03:05.7]} 10... Qb6 {[%clk 0:02:46.8]} 11. a4
{[%clk 0:02:57]} 11... c4 {[%clk 0:02:38.8]} 12. Bc2 {[%clk 0:02:47.1]} 12... b4
{[%clk 0:02:17.9]} 13. a5 {[%clk 0:02:46]} 13... Qc7 {[%clk 0:02:18.5]} 14. Na4
{[%clk 0:02:41.3]} 14... Be7 {[%clk 0:02:18.8]} 15. Nb6 {[%clk 0:02:36.4]} 15...
Nxb6 {[%clk 0:02:16.3]} 16. axb6 {[%clk 0:02:38.3]} 16... Qxb6 {[%clk
0:02:17.1]} 17. Ba4+ {[%clk 0:02:14.5]} 17... Bc6 {[%clk 0:01:34.4]} 18. Bxc6+
{[%clk 0:02:02.5]} 18... Qxc6 {[%clk 0:01:36.3]} 19. Ne5 {[%clk 0:02:03.9]}
19... Qb7 {[%clk 0:01:35.9]} 20. Qxc4 {[%clk 0:02:01.4]} 20... O-O {[%clk
0:01:36.5]} 21. Bd2 {[%clk 0:01:45.1]} 21... Rfc8 {[%clk 0:01:36.3]} 22. Qd3
{[%clk 0:01:41]} 22... a5 {[%clk 0:01:23.7]} 23. b3 {[%clk 0:01:35.7]} 23... Qe4
{[%clk 0:01:22]} 24. Qxe4 {[%clk 0:01:23.9]} 24... Nxe4 {[%clk 0:01:22.3]} 25.
Nc4 {[%clk 0:01:25.4]} 25... Bd8 {[%clk 0:00:57.5]} 26. Ra4 {[%clk 0:01:22.6]}
26... Rab8 {[%clk 0:00:55.8]} 27. f3 {[%clk 0:01:17.5]} 27... Nc3 {[%clk
0:00:54.4]} 28. Bxc3 {[%clk 0:01:06.6]} 28... bxc3 {[%clk 0:00:56.3]} 29. Rc1
{[%clk 0:00:42.2]} 29... Rxb3 {[%clk 0:00:54.9]} 30. Nxa5 {[%clk 0:00:42.9]}
30... Bxa5 {[%clk 0:00:45.8]} 31. Rxa5 {[%clk 0:00:44.8]} 31... c2 {[%clk
0:00:46.9]} 32. Kf2 {[%clk 0:00:45.5]} 32... Rb1 {[%clk 0:00:44.7]} 33. Rxc2
{[%clk 0:00:34.5]} 33... Rxc2+ {[%clk 0:00:44.5]} 0-1

[Event "*** Titled Tuesday Blitz"]
[Site "Chess.com"]
[Date "2019.10.01"]
[Round "3"]
[White "Casablanca"]
[Black "Alopekos"]
[Result "1-0"]
[WhiteElo "2191"]
[BlackElo "2508"]
[TimeControl "180+2"]
[EndTime "13:36:23 PDT"]
[Termination "Casablanca won by resignation"]

1. Nf3 {[%clk 0:03:01.9]} 1... c5 {[%clk 0:02:59.4]} 2. g3 {[%clk 0:03:02.1]}
2... Nc6 {[%clk 0:02:58.8]} 3. Bg2 {[%clk 0:03:04]} 3... g6 {[%clk 0:02:59.9]}
4. O-O {[%clk 0:03:03.4]} 4... Bg7 {[%clk 0:03:01.4]} 5. c3 {[%clk 0:03:03.4]}
5... e5 {[%clk 0:03:00.1]} 6. e4 {[%clk 0:02:55.7]} 6... Nge7 {[%clk 0:03:00.5]}
7. Re1 {[%clk 0:02:54]} 7... O-O {[%clk 0:03:01.4]} 8. Na3 {[%clk 0:02:54.7]}
8... d6 {[%clk 0:02:37.9]} 9. Nc2 {[%clk 0:02:52.9]} 9... f5 {[%clk 0:02:23.3]}
10. d3 {[%clk 0:02:48.9]} 10... h6 {[%clk 0:02:05.5]} 11. b4 {[%clk 0:02:28]}
11... f4 {[%clk 0:00:32.5]} 12. b5 {[%clk 0:02:18.3]} 12... Na5 {[%clk
0:00:30.7]} 13. Nd2 {[%clk 0:01:45.8]} 13... g5 {[%clk 0:00:28.5]} 14. g4 {[%clk
0:01:34]} 14... Ng6 {[%clk 0:00:23.7]} 15. f3 {[%clk 0:01:33.3]} 15... Nh4
{[%clk 0:00:24.4]} 16. Bf1 {[%clk 0:01:30.1]} 16... h5 {[%clk 0:00:24.7]} 17. h3
{[%clk 0:01:31]} 17... hxg4 {[%clk 0:00:25.2]} 18. hxg4 {[%clk 0:01:32.9]} 18...
Be6 {[%clk 0:00:05.2]} 19. c4 {[%clk 0:01:30.3]} 19... Rf6 {[%clk 0:00:03.6]}
20. Kf2 {[%clk 0:01:31]} 20... Rh6 {[%clk 0:00:04]} 21. Nb3 {[%clk 0:01:30.3]}
21... Kf7 {[%clk 0:00:02.4]} 22. Ke2 {[%clk 0:01:20.2]} 22... Nxb3 {[%clk
0:00:02.5]} 23. axb3 {[%clk 0:01:21.1]} 23... Qd7 {[%clk 0:00:03.4]} 24. Kd2
{[%clk 0:01:17.4]} 24... Ng6 {[%clk 0:00:03.4]} 25. Be2 {[%clk 0:01:18.1]} 25...
Rh2 {[%clk 0:00:04.2]} 26. Rh1 {[%clk 0:01:17.7]} 26... Rah8 {[%clk 0:00:03.8]}
27. Rxh2 {[%clk 0:01:18.8]} 27... Rxh2 {[%clk 0:00:05.7]} 28. Qg1 {[%clk
0:01:19.8]} 28... Rh8 {[%clk 0:00:02.7]} 29. Rxa7 {[%clk 0:01:19.4]} 29... Nh4
{[%clk 0:00:03.8]} 30. Kc3 {[%clk 0:01:14.9]} 30... Qc7 {[%clk 0:00:03.2]} 31.
Bd2 {[%clk 0:01:14.5]} 31... Qb6 {[%clk 0:00:04.3]} 32. Ra1 {[%clk 0:01:15]}
32... Kg6 {[%clk 0:00:05.2]} 33. Kb2 {[%clk 0:01:15.7]} 33... Kf6 {[%clk
0:00:03.9]} 34. Ba5 {[%clk 0:01:16.4]} 34... Qa7 {[%clk 0:00:04]} 35. Bd8+
{[%clk 0:01:17.4]} 35... Rxd8 {[%clk 0:00:04.2]} 36. Rxa7 {[%clk 0:01:18.6]} 1-0

[Event "*** Titled Tuesday Blitz"]
[Site "Chess.com"]
[Date "2019.10.01"]
[Round "3"]
[White "ENEASZ"]
[Black "Olga_Zhuravleva"]
[Result "1-0"]
[WhiteElo "2526"]
[BlackElo "2198"]
[TimeControl "180+2"]
[EndTime "13:36:29 PDT"]
[Termination "ENEASZ won by resignation"]

1. e4 {[%clk 0:03:01.9]} 1... e5 {[%clk 0:02:58.2]} 2. Nf3 {[%clk 0:03:01.8]}
2... Nc6 {[%clk 0:02:59.6]} 3. Bc4 {[%clk 0:03:02.8]} 3... Nf6 {[%clk
0:02:59.5]} 4. d3 {[%clk 0:03:04.2]} 4... d5 {[%clk 0:03:00.6]} 5. exd5 {[%clk
0:03:04.9]} 5... Nxd5 {[%clk 0:03:02.5]} 6. O-O {[%clk 0:03:06.4]} 6... Bc5
{[%clk 0:03:03.8]} 7. Re1 {[%clk 0:03:07.6]} 7... O-O {[%clk 0:03:04.9]} 8. Nbd2
{[%clk 0:03:04.2]} 8... Re8 {[%clk 0:02:43.2]} 9. c3 {[%clk 0:03:01.8]} 9... Nb6
{[%clk 0:02:42.4]} 10. Bb5 {[%clk 0:03:00.9]} 10... f6 {[%clk 0:02:40.8]} 11.
Ne4 {[%clk 0:02:52.5]} 11... Bd6 {[%clk 0:02:39.6]} 12. h3 {[%clk 0:02:46.8]}
12... a6 {[%clk 0:02:32.1]} 13. Bxc6 {[%clk 0:02:47.8]} 13... bxc6 {[%clk
0:02:34]} 14. d4 {[%clk 0:02:49.6]} 14... Bf5 {[%clk 0:02:20.7]} 15. Ng3 {[%clk
0:02:47.4]} 15... Bg6 {[%clk 0:02:17.3]} 16. dxe5 {[%clk 0:02:47.4]} 16... fxe5
{[%clk 0:02:13.3]} 17. Bg5 {[%clk 0:02:46.8]} 17... Qc8 {[%clk 0:02:09.7]} 18.
Nh4 {[%clk 0:02:43.8]} 18... Bf7 {[%clk 0:02:07.8]} 19. Nhf5 {[%clk 0:02:43.8]}
19... Nd5 {[%clk 0:02:01.1]} 20. c4 {[%clk 0:02:05.3]} 20... Nf4 {[%clk
0:00:58.6]} 21. Nxd6 {[%clk 0:01:58.1]} 21... cxd6 {[%clk 0:00:59.8]} 22. Qxd6
{[%clk 0:02:00]} 22... Bxc4 {[%clk 0:00:57.9]} 23. Rxe5 {[%clk 0:01:49.8]} 23...
Ng6 {[%clk 0:00:48.7]} 24. Re3 {[%clk 0:01:31.7]} 24... Rxe3 {[%clk 0:00:42.1]}
25. Bxe3 {[%clk 0:01:33.6]} 25... Qb7 {[%clk 0:00:42.6]} 26. b3 {[%clk 0:01:34]}
26... Bd5 {[%clk 0:00:43.5]} 27. Qc5 {[%clk 0:01:24.7]} 27... Qf7 {[%clk
0:00:41.4]} 28. Rd1 {[%clk 0:01:24.2]} 28... Re8 {[%clk 0:00:38.6]} 29. Rd4
{[%clk 0:01:24.4]} 29... h6 {[%clk 0:00:36.4]} 30. Rg4 {[%clk 0:01:23.6]} 30...
Ne5 {[%clk 0:00:35]} 31. Rd4 {[%clk 0:01:20.8]} 31... Qg6 {[%clk 0:00:33.7]} 32.
Qc1 {[%clk 0:01:09.6]} 32... Kh8 {[%clk 0:00:22.2]} 33. Ra4 {[%clk 0:01:09.7]}
33... Nd3 {[%clk 0:00:19.2]} 34. Qd2 {[%clk 0:01:10.6]} 34... Ne5 {[%clk
0:00:18.9]} 35. Rxa6 {[%clk 0:01:10.7]} 35... Rf8 {[%clk 0:00:17.9]} 36. Qb4
{[%clk 0:01:06.4]} 36... h5 {[%clk 0:00:17.9]} 37. Qxf8+ {[%clk 0:01:07]} 1-0

[Event "*** Titled Tuesday Blitz"]
[Site "Chess.com"]
[Date "2019.10.01"]
[Round "3"]
[White "raviteja81293"]
[Black "KL31"]
[Result "0-1"]
[WhiteElo "2597"]
[BlackElo "2420"]
[TimeControl "180+2"]
[EndTime "13:36:39 PDT"]
[Termination "KL31 won by resignation"]

1. d4 {[%clk 0:02:33.2]} 1... Nf6 {[%clk 0:03:00.8]} 2. Nf3 {[%clk 0:02:34]}
2... e6 {[%clk 0:03:02.2]} 3. Bf4 {[%clk 0:02:34.5]} 3... d5 {[%clk 0:03:02.2]}
4. e3 {[%clk 0:02:36.2]} 4... Bd6 {[%clk 0:03:03.5]} 5. Bxd6 {[%clk 0:02:37.6]}
5... Qxd6 {[%clk 0:03:03.4]} 6. c4 {[%clk 0:02:39.5]} 6... O-O {[%clk
0:02:57.1]} 7. Nc3 {[%clk 0:02:39.8]} 7... c5 {[%clk 0:02:55]} 8. dxc5 {[%clk
0:02:40.5]} 8... Qxc5 {[%clk 0:02:56.1]} 9. cxd5 {[%clk 0:02:42.4]} 9... exd5
{[%clk 0:02:48.9]} 10. Qd4 {[%clk 0:02:42.8]} 10... Qxd4 {[%clk 0:02:43.4]} 11.
Nxd4 {[%clk 0:02:43]} 11... Nc6 {[%clk 0:02:45.1]} 12. Rd1 {[%clk 0:02:41.6]}
12... Bg4 {[%clk 0:02:39.3]} 13. Be2 {[%clk 0:02:42.6]} 13... Bxe2 {[%clk
0:02:38.4]} 14. Kxe2 {[%clk 0:02:44.5]} 14... Rac8 {[%clk 0:02:27.5]} 15. Nf5
{[%clk 0:02:39.8]} 15... Rfd8 {[%clk 0:02:23.8]} 16. f3 {[%clk 0:02:36.1]} 16...
g6 {[%clk 0:02:24.6]} 17. Nd4 {[%clk 0:02:37.5]} 17... a6 {[%clk 0:02:18.4]} 18.
Kf2 {[%clk 0:02:38.3]} 18... Ne5 {[%clk 0:02:16.2]} 19. Rhe1 {[%clk 0:02:36.9]}
19... Nc4 {[%clk 0:02:16.7]} 20. Re2 {[%clk 0:02:38]} 20... b5 {[%clk
0:02:16.4]} 21. Nb1 {[%clk 0:02:26.8]} 21... b4 {[%clk 0:02:06.5]} 22. g4 {[%clk
0:02:17.9]} 22... h6 {[%clk 0:02:04.1]} 23. h4 {[%clk 0:02:16.9]} 23... Nb6
{[%clk 0:01:42.7]} 24. Nd2 {[%clk 0:02:12.9]} 24... a5 {[%clk 0:01:36.7]} 25.
N2b3 {[%clk 0:01:53.5]} 25... a4 {[%clk 0:01:33.9]} 26. Na5 {[%clk 0:01:54.9]}
26... Rd6 {[%clk 0:01:16.7]} 27. Rc2 {[%clk 0:01:45.5]} 27... Ra8 {[%clk
0:01:04.5]} 28. Nac6 {[%clk 0:01:40.8]} 28... b3 {[%clk 0:01:00.7]} 29. axb3
{[%clk 0:01:42.1]} 29... axb3 {[%clk 0:01:01.8]} 30. Nxb3 {[%clk 0:01:43.6]}
30... Nc4 {[%clk 0:01:03.3]} 31. Nbd4 {[%clk 0:01:35.2]} 31... Re8 {[%clk
0:00:40.9]} 32. Rd3 {[%clk 0:01:28.6]} 32... Nd7 {[%clk 0:00:32.5]} 33. b3
{[%clk 0:01:23.7]} 33... Nce5 {[%clk 0:00:18.8]} 34. Nxe5 {[%clk 0:01:22.1]}
34... Nxe5 {[%clk 0:00:19.7]} 35. Rdc3 {[%clk 0:01:22.5]} 35... Rb6 {[%clk
0:00:18.5]} 36. Rc8 {[%clk 0:01:21.2]} 36... Rxc8 {[%clk 0:00:18.7]} 37. Rxc8+
{[%clk 0:01:23.1]} 37... Kg7 {[%clk 0:00:20.5]} 38. Rc5 {[%clk 0:01:24.4]} 38...
Nd3+ {[%clk 0:00:19.9]} 39. Ke2 {[%clk 0:01:23]} 39... Nxc5 {[%clk 0:00:21.8]}
40. f4 {[%clk 0:01:20.6]} 40... Nxb3 {[%clk 0:00:23.1]} 41. Nf3 {[%clk
0:01:20.8]} 41... Nc5 {[%clk 0:00:23.9]} 42. Ne5 {[%clk 0:01:22.2]} 42... Ne4
{[%clk 0:00:24.9]} 43. Nd3 {[%clk 0:01:22.7]} 43... Rb3 {[%clk 0:00:25.3]} 44.
Nc1 {[%clk 0:01:22.3]} 44... Rb2+ {[%clk 0:00:26.2]} 0-1

[Event "*** Titled Tuesday Blitz"]
[Site "Chess.com"]
[Date "2019.10.01"]
[Round "3"]
[White "kasparicy"]
[Black "Gr3egor"]
[Result "0-1"]
[WhiteElo "2402"]
[BlackElo "2611"]
[TimeControl "180+2"]
[EndTime "13:36:54 PDT"]
[Termination "Gr3egor won by resignation"]

1. e4 {[%clk 0:02:58]} 1... e5 {[%clk 0:03:00.4]} 2. Nf3 {[%clk 0:02:53.8]} 2...
Nc6 {[%clk 0:03:01.3]} 3. Bc4 {[%clk 0:02:55]} 3... Bc5 {[%clk 0:03:02.1]} 4.
O-O {[%clk 0:02:51.8]} 4... Nf6 {[%clk 0:03:00.9]} 5. d4 {[%clk 0:02:52.8]} 5...
Bxd4 {[%clk 0:03:01.5]} 6. Nxd4 {[%clk 0:02:51]} 6... Nxd4 {[%clk 0:03:03.4]} 7.
f4 {[%clk 0:02:52.1]} 7... d6 {[%clk 0:03:04.4]} 8. fxe5 {[%clk 0:02:36.2]} 8...
dxe5 {[%clk 0:03:06.3]} 9. Bg5 {[%clk 0:02:37.5]} 9... Qe7 {[%clk 0:03:07.4]}
10. Na3 {[%clk 0:02:28.7]} 10... c6 {[%clk 0:02:55.8]} 11. Kh1 {[%clk
0:01:56.3]} 11... Ne6 {[%clk 0:02:47.9]} 12. Bxf6 {[%clk 0:01:57.3]} 12... gxf6
{[%clk 0:02:48.7]} 13. Bb3 {[%clk 0:01:59.2]} 13... Nc5 {[%clk 0:02:20.7]} 14.
Qf3 {[%clk 0:01:58.9]} 14... Be6 {[%clk 0:02:14.9]} 15. Bxe6 {[%clk 0:01:50.7]}
15... fxe6 {[%clk 0:02:16.8]} 16. Qxf6 {[%clk 0:01:50.1]} 16... Qxf6 {[%clk
0:02:16.6]} 17. Rxf6 {[%clk 0:01:52]} 17... O-O-O {[%clk 0:02:15.3]} 18. Nc4
{[%clk 0:01:42.7]} 18... Rd4 {[%clk 0:02:16.1]} 19. Nxe5 {[%clk 0:01:41.3]}
19... Rhd8 {[%clk 0:02:13.9]} 20. Rf4 {[%clk 0:01:30.8]} 20... Rd2 {[%clk
0:02:05.9]} 21. b4 {[%clk 0:01:21.9]} 21... Nd7 {[%clk 0:01:59.8]} 22. Nf7
{[%clk 0:01:11.2]} 22... Rg8 {[%clk 0:01:57.6]} 23. g3 {[%clk 0:01:11.6]} 23...
Rxc2 {[%clk 0:01:56.7]} 24. Rd1 {[%clk 0:01:08.6]} 24... Kc7 {[%clk 0:01:54.9]}
25. Ng5 {[%clk 0:00:57.7]} 25... Ne5 {[%clk 0:01:53.2]} 26. Nxe6+ {[%clk
0:00:47.5]} 26... Kc8 {[%clk 0:01:54.6]} 27. a3 {[%clk 0:00:48.9]} 27... Ra2
{[%clk 0:01:48.4]} 28. Rh4 {[%clk 0:00:49.1]} 28... Re8 {[%clk 0:01:43.9]} 29.
Ng7 {[%clk 0:00:43]} 29... Rh8 {[%clk 0:01:43.5]} 30. Rh5 {[%clk 0:00:37.3]}
30... Ng4 {[%clk 0:01:41.9]} 31. Kg1 {[%clk 0:00:20]} 31... Rxa3 {[%clk
0:01:43]} 32. Re1 {[%clk 0:00:15.9]} 32... Re3 {[%clk 0:01:41.4]} 33. Rxe3
{[%clk 0:00:08]} 33... Nxe3 {[%clk 0:01:43.3]} 34. Nf5 {[%clk 0:00:09.1]} 34...
Nc4 {[%clk 0:01:41.3]} 35. e5 {[%clk 0:00:07.4]} 35... Kd7 {[%clk 0:01:40.2]}
36. Nd4 {[%clk 0:00:04.7]} 36... Ne3 {[%clk 0:01:41.6]} 37. e6+ {[%clk
0:00:05.8]} 37... Kd6 {[%clk 0:01:38.9]} 38. Kf2 {[%clk 0:00:06.4]} 38... Nd5
{[%clk 0:01:36.6]} 39. Rh6 {[%clk 0:00:06.8]} 39... Ke5 {[%clk 0:01:34.6]} 40.
Nf3+ {[%clk 0:00:07.4]} 40... Kf5 {[%clk 0:01:22.4]} 41. h4 {[%clk 0:00:06.9]}
41... Nf6 {[%clk 0:01:20.8]} 42. Nd4+ {[%clk 0:00:06.8]} 42... Ke5 {[%clk
0:01:22.3]} 43. e7 {[%clk 0:00:07.6]} 43... Ng4+ {[%clk 0:01:18.5]} 0-1

[Event "*** Titled Tuesday Blitz"]
[Site "Chess.com"]
[Date "2019.10.01"]
[Round "3"]
[White "MoonlighT89"]
[Black "RU_B9"]
[Result "1-0"]
[WhiteElo "2510"]
[BlackElo "1751"]
[TimeControl "180+2"]
[EndTime "13:36:55 PDT"]
[Termination "MoonlighT89 won by resignation"]

1. e4 {[%clk 0:02:59.7]} 1... c5 {[%clk 0:03:00.9]} 2. Nf3 {[%clk 0:03:00.3]}
2... g6 {[%clk 0:03:01.9]} 3. d4 {[%clk 0:03:01]} 3... cxd4 {[%clk 0:03:03.8]}
4. Qxd4 {[%clk 0:03:02.1]} 4... Nf6 {[%clk 0:03:04.2]} 5. Nc3 {[%clk 0:03:03.4]}
5... Nc6 {[%clk 0:03:05.2]} 6. Qa4 {[%clk 0:03:04.6]} 6... d6 {[%clk 0:03:02.9]}
7. e5 {[%clk 0:03:04.5]} 7... dxe5 {[%clk 0:03:03.6]} 8. Nxe5 {[%clk 0:03:06.4]}
8... Bd7 {[%clk 0:03:04.4]} 9. Nxd7 {[%clk 0:03:07.7]} 9... Nxd7 {[%clk
0:02:59.2]} 10. Be2 {[%clk 0:03:03.2]} 10... Bg7 {[%clk 0:02:58.7]} 11. Be3
{[%clk 0:03:02.6]} 11... O-O {[%clk 0:02:58.6]} 12. Rd1 {[%clk 0:03:01]} 12...
Qc8 {[%clk 0:02:47.4]} 13. O-O {[%clk 0:02:58.2]} 13... Re8 {[%clk 0:02:30.2]}
14. Qh4 {[%clk 0:02:53.7]} 14... e5 {[%clk 0:02:11.4]} 15. Nd5 {[%clk
0:02:50.9]} 15... f5 {[%clk 0:01:59.2]} 16. c3 {[%clk 0:02:21.9]} 16... f4
{[%clk 0:01:48.4]} 17. Bc1 {[%clk 0:02:16.4]} 17... Qd8 {[%clk 0:01:30.1]} 18.
Qh3 {[%clk 0:02:12.4]} 18... Qc8 {[%clk 0:01:19.2]} 19. Bg4 {[%clk 0:02:02.9]}
19... Ncb8 {[%clk 0:01:10.3]} 20. Rfe1 {[%clk 0:01:47.9]} 20... h5 {[%clk
0:01:09.9]} 21. Be6+ {[%clk 0:01:35.5]} 21... Kf8 {[%clk 0:01:08.6]} 22. b3
{[%clk 0:01:29.1]} 22... Bh6 {[%clk 0:00:40.2]} 23. Rxe5 {[%clk 0:01:10.1]}
23... Qc6 {[%clk 0:00:35.4]} 24. Ree1 {[%clk 0:00:42]} 24... Nb6 {[%clk
0:00:19.4]} 25. c4 {[%clk 0:00:32.7]} 25... Nxd5 {[%clk 0:00:09.5]} 26. Bxd5
{[%clk 0:00:34.6]} 26... Rxe1+ {[%clk 0:00:03.3]} 27. Rxe1 {[%clk 0:00:34.6]}
27... Qd7 {[%clk 0:00:04.1]} 28. Ba3+ {[%clk 0:00:34.1]} 28... Kg7 {[%clk
0:00:04.6]} 29. Qc3+ {[%clk 0:00:33.8]} 29... Kh7 {[%clk 0:00:03.3]} 30. Re7+
{[%clk 0:00:31.6]} 1-0

[Event "*** Titled Tuesday Blitz"]
[Site "Chess.com"]
[Date "2019.10.01"]
[Round "3"]
[White "valeriocarnicelli"]
[Black "pedroholly22"]
[Result "1/2-1/2"]
[WhiteElo "2490"]
[BlackElo "2315"]
[TimeControl "180+2"]
[EndTime "13:36:55 PDT"]
[Termination "Game drawn by repetition"]

1. e4 {[%clk 0:02:55.2]} 1... e6 {[%clk 0:03:00.6]} 2. d4 {[%clk 0:02:55.9]}
2... d5 {[%clk 0:03:01.3]} 3. Nc3 {[%clk 0:02:57.4]} 3... Nf6 {[%clk 0:03:01.4]}
4. e5 {[%clk 0:02:58.8]} 4... Nfd7 {[%clk 0:03:02.3]} 5. f4 {[%clk 0:03:00.5]}
5... c5 {[%clk 0:03:03.9]} 6. Nf3 {[%clk 0:03:01.8]} 6... Nc6 {[%clk 0:03:05.5]}
7. Be3 {[%clk 0:03:02.9]} 7... Be7 {[%clk 0:03:07.1]} 8. Qd2 {[%clk 0:03:03.6]}
8... a6 {[%clk 0:02:48.4]} 9. Nd1 {[%clk 0:02:56.9]} 9... cxd4 {[%clk
0:02:45.1]} 10. Nxd4 {[%clk 0:02:57.6]} 10... Nxd4 {[%clk 0:02:46.5]} 11. Bxd4
{[%clk 0:02:58.6]} 11... Nb8 {[%clk 0:02:47.7]} 12. Ne3 {[%clk 0:02:43]} 12...
Nc6 {[%clk 0:02:48.2]} 13. c3 {[%clk 0:02:44.2]} 13... Bd7 {[%clk 0:02:48.2]}
14. f5 {[%clk 0:02:34.4]} 14... Rc8 {[%clk 0:02:45.8]} 15. Bd3 {[%clk
0:02:22.5]} 15... Nxd4 {[%clk 0:02:41.5]} 16. cxd4 {[%clk 0:02:23.6]} 16... Qb6
{[%clk 0:02:42.7]} 17. Nc2 {[%clk 0:02:09.4]} 17... Rxc2 {[%clk 0:02:43]} 18.
Qxc2 {[%clk 0:02:07.5]} 18... Qxd4 {[%clk 0:02:44.1]} 19. O-O-O {[%clk 0:02:07]}
19... Qxe5 {[%clk 0:02:43.6]} 20. fxe6 {[%clk 0:02:02.4]} 20... Bxe6 {[%clk
0:02:39.6]} 21. Kb1 {[%clk 0:02:00.3]} 21... g6 {[%clk 0:02:38.5]} 22. Rhe1
{[%clk 0:02:00.5]} 22... Qd6 {[%clk 0:02:32.2]} 23. Qa4+ {[%clk 0:01:56.2]}
23... Bd7 {[%clk 0:02:24.7]} 24. Qh4 {[%clk 0:01:53.8]} 24... Be6 {[%clk
0:02:22.4]} 25. Qh6 {[%clk 0:01:54]} 25... Bf6 {[%clk 0:02:23.5]} 26. Rc1 {[%clk
0:01:47.7]} 26... Kd7 {[%clk 0:02:13.3]} 27. Qd2 {[%clk 0:01:35.2]} 27... h6
{[%clk 0:02:03.7]} 28. Qf2 {[%clk 0:01:34]} 28... Bg7 {[%clk 0:01:54.3]} 29. a3
{[%clk 0:01:24.4]} 29... Qxh2 {[%clk 0:01:41.6]} 30. Qb6 {[%clk 0:01:20.1]}
30... Qb8 {[%clk 0:01:39.3]} 31. Bxg6 {[%clk 0:01:16.6]} 31... Rc8 {[%clk
0:01:29]} 32. Rxc8 {[%clk 0:01:12]} 32... Qxc8 {[%clk 0:01:21.8]} 33. Rc1 {[%clk
0:01:12.2]} 33... Qb8 {[%clk 0:01:22.8]} 34. Bc2 {[%clk 0:01:08.7]} 34... Ke7
{[%clk 0:01:19]} 35. Bd3 {[%clk 0:01:01]} 35... Be5 {[%clk 0:01:16.6]} 36. Qb4+
{[%clk 0:00:56.9]} 36... Bd6 {[%clk 0:01:09.6]} 37. Qh4+ {[%clk 0:00:57.5]}
37... Kd7 {[%clk 0:01:11]} 38. Qxh6 {[%clk 0:00:58]} 38... Bf4 {[%clk
0:01:11.3]} 39. Qg7 {[%clk 0:00:44.8]} 39... Bxc1 {[%clk 0:01:10.8]} 40. Kxc1
{[%clk 0:00:46.7]} 40... Qf4+ {[%clk 0:01:10]} 41. Kb1 {[%clk 0:00:47.7]} 41...
Qd2 {[%clk 0:01:08.2]} 42. Qd4 {[%clk 0:00:45]} 42... Qa5 {[%clk 0:01:05.7]} 43.
Ka2 {[%clk 0:00:43.5]} 43... Qc7 {[%clk 0:01:03.6]} 44. Kb1 {[%clk 0:00:42.8]}
44... Ke7 {[%clk 0:01:03.6]} 45. Qh4+ {[%clk 0:00:42.7]} 45... Kd7 {[%clk
0:01:05]} 46. Qd4 {[%clk 0:00:43.4]} 46... Qd6 {[%clk 0:01:02.7]} 47. Qa7 {[%clk
0:00:41]} 47... Qc7 {[%clk 0:01:02.8]} 48. Qd4 {[%clk 0:00:41.8]} 1/2-1/2

[Event "*** Titled Tuesday Blitz"]
[Site "Chess.com"]
[Date "2019.10.01"]
[Round "3"]
[White "chessdjw"]
[Black "hypert"]
[Result "1-0"]
[WhiteElo "2636"]
[BlackElo "2426"]
[TimeControl "180+2"]
[EndTime "13:36:57 PDT"]
[Termination "chessdjw won by resignation"]

1. c4 {[%clk 0:03:01.9]} 1... e5 {[%clk 0:03:00]} 2. Nc3 {[%clk 0:03:02.8]} 2...
Nf6 {[%clk 0:03:00.3]} 3. Nf3 {[%clk 0:03:03.2]} 3... Nc6 {[%clk 0:03:00.6]} 4.
g3 {[%clk 0:03:04.5]} 4... d5 {[%clk 0:03:01.1]} 5. cxd5 {[%clk 0:03:05]} 5...
Nxd5 {[%clk 0:03:02.2]} 6. Bg2 {[%clk 0:03:06.9]} 6... Nb6 {[%clk 0:03:02.3]} 7.
O-O {[%clk 0:03:06.9]} 7... Be7 {[%clk 0:03:03.7]} 8. d3 {[%clk 0:03:07.8]} 8...
O-O {[%clk 0:03:04.7]} 9. Be3 {[%clk 0:03:09.4]} 9... Re8 {[%clk 0:03:04.8]} 10.
Rc1 {[%clk 0:03:09.4]} 10... Bf8 {[%clk 0:03:05.2]} 11. Bg5 {[%clk 0:03:10]}
11... Be7 {[%clk 0:02:57.7]} 12. Bxe7 {[%clk 0:03:10.7]} 12... Qxe7 {[%clk
0:02:56.5]} 13. Nd2 {[%clk 0:03:08.2]} 13... Nd4 {[%clk 0:02:52.2]} 14. e3
{[%clk 0:03:03.6]} 14... Nf5 {[%clk 0:02:50.2]} 15. Qc2 {[%clk 0:02:36.5]} 15...
c6 {[%clk 0:02:44]} 16. Nce4 {[%clk 0:02:34.9]} 16... Nd6 {[%clk 0:02:42.8]} 17.
Nc5 {[%clk 0:02:35.1]} 17... Nd7 {[%clk 0:02:34.1]} 18. b4 {[%clk 0:02:26]}
18... a5 {[%clk 0:02:35]} 19. a3 {[%clk 0:02:27]} 19... axb4 {[%clk 0:02:31.3]}
20. axb4 {[%clk 0:02:28.9]} 20... Nf6 {[%clk 0:02:22.3]} 21. Nc4 {[%clk
0:01:59.7]} 21... Nxc4 {[%clk 0:01:48.7]} 22. Qxc4 {[%clk 0:01:58.1]} 22... Rb8
{[%clk 0:01:41.6]} 23. b5 {[%clk 0:01:53.9]} 23... b6 {[%clk 0:01:27.5]} 24. Na6
{[%clk 0:01:47.1]} 24... cxb5 {[%clk 0:01:25.2]} 25. Qxb5 {[%clk 0:01:49]} 25...
Bxa6 {[%clk 0:01:20.1]} 26. Qxa6 {[%clk 0:01:50.9]} 26... Qd6 {[%clk 0:01:13.9]}
27. Rc6 {[%clk 0:01:48.5]} 27... Qb4 {[%clk 0:01:09.7]} 28. Rfc1 {[%clk
0:01:41.8]} 28... Red8 {[%clk 0:01:06.3]} 29. Rc7 {[%clk 0:01:33.6]} 29... Nd5
{[%clk 0:00:38.6]} 30. Ra7 {[%clk 0:00:52.7]} 30... Nc3 {[%clk 0:00:29.1]} 31.
Bf3 {[%clk 0:00:42.1]} 31... Qb5 {[%clk 0:00:23.5]} 32. Rxc3 {[%clk 0:00:38.8]}
32... Qxa6 {[%clk 0:00:21.3]} 33. Rxa6 {[%clk 0:00:40.7]} 33... b5 {[%clk
0:00:23.1]} 34. Rb3 {[%clk 0:00:41.5]} 34... b4 {[%clk 0:00:24.5]} 35. Ra4
{[%clk 0:00:42.2]} 35... Rbc8 {[%clk 0:00:24.3]} 36. Raxb4 {[%clk 0:00:42.6]}
36... Rc1+ {[%clk 0:00:25.2]} 37. Kg2 {[%clk 0:00:44.1]} 37... Rcc8 {[%clk
0:00:26.5]} 38. Rb7 {[%clk 0:00:43.7]} 38... Rf8 {[%clk 0:00:26.7]} 39. Bd5
{[%clk 0:00:43.9]} 39... Rcd8 {[%clk 0:00:28.1]} 40. e4 {[%clk 0:00:45.3]} 40...
g6 {[%clk 0:00:29.4]} 41. Ra7 {[%clk 0:00:46.5]} 41... Kh8 {[%clk 0:00:29.8]}
42. Rxf7 {[%clk 0:00:45.3]} 1-0